Organisation Name,Organisation Code,Responsible Unit Desc,Service Area Cat Desc,Detailed Expenses Desc,Supplier Name,Supplier Ref,Payment Date,Invoice No,Nett Amount,Goods Description
Eden District Council,http://opendatacommunities.org/id/district-council/eden,Human Resources Manager,Central Expenses,Advertising,CHARTERED INSTITUTE OF ENVIRONMENTAL HEALTH,CIE002,07/06/19,172661,600,EHN ONLINE ONLY
Eden District Council,http://opendatacommunities.org/id/district-council/eden,Commercial Services Manager,Town Centres,Grants and contributions,CUMBRIA CVS,CUM080,07/06/19,172671,4720,CORE FUNDING 2019/20
Eden District Council,http://opendatacommunities.org/id/district-council/eden,Legal Services Manager,Committee and Member Costs,Supplies general,CENTRE FOR PUBLIC SCRUTINY LTD,CEN017,07/06/19,172672,1050,SUPP SCRUTINY MEMBER DEV 21.05.19
Eden District Council,http://opendatacommunities.org/id/district-council/eden,Commercial Services Manager,Town Centres,Grants and contributions,VOLUNTARY ACTION CUMBRIA,VOL001,07/06/19,172673,8125,DELIVERY OF SERVICES SLA 2019/20
Eden District Council,http://opendatacommunities.org/id/district-council/eden,Technical Services Manager,Administrative Buildings,Auto door mount,GEZE UK LIMITED,GEZ001,07/06/19,172690,513.74,BEA 4SAFE BLACK SENSORS
Eden District Council,http://opendatacommunities.org/id/district-council/eden,Commercial Services Manager,Tourism Promotion,Subscriptions & levies,NEW VISION GROUP LTD,NEW013,07/06/19,172783,4200,DC NET  & WEBSERVICES RENEWAL
Eden District Council,http://opendatacommunities.org/id/district-council/eden,Environmental Services,Appleby Fair,Transit Sites,BORDERLOOS,BOR003,07/06/19,172477,510,HIRE OF PORTALOOS MELMERBY
Eden District Council,http://opendatacommunities.org/id/district-council/eden,Financial Services Manager,Financial Services,Balance Sheet entry BS,AUTOMOTIVE REPAIR AND RESTORE,MAB002,07/06/19,171134,1175,REFUND OF DEPOSIT MINUS COSTS BY EDC
Eden District Council,http://opendatacommunities.org/id/district-council/eden,Environmental Services,1996 Mandatory Renovation Grants,Capital grants,TERRY GROUP LTD,TER003,07/06/19,172086,14333,FINAL PAYMENT - grant
Eden District Council,http://opendatacommunities.org/id/district-council/eden,Environmental Services,Pest Control,Pest Control,RENTOKIL INITIAL PEST CONTROL,REN009,07/06/19,172267,910.03,PESTS MISC MANSION HOUSE
Eden District Council,http://opendatacommunities.org/id/district-council/eden,Legal Services Manager,Holding Accounts,Balance Sheet entry BS,ASSOCIATION OF ELECTORAL ADMINISTRATION,ASS003,07/06/19,172539,3958.22,TRAINING EXPENSES LOCAL AND EURO ELECTIO
Eden District Council,http://opendatacommunities.org/id/district-council/eden,Legal Services Manager,Elections,Miscellaneous,GREENWICH LEISURE LTD,NCL001,07/06/19,172584,2397.49,ROMM HIRE / REFRESHMENTS
Eden District Council,http://opendatacommunities.org/id/district-council/eden,Corporate Services Manager,Corporate Services,Agency Staff,PAYSTREAM MY MAX LTD,PAY005,07/06/19,172586,1500,SERVICES OF INDEPENDANT ADVISOR
Eden District Council,http://opendatacommunities.org/id/district-council/eden,Human Resources Manager,Central Expenses,Advertising,NAVIGATE NDC LTD,NAV001,07/06/19,172595,7860,ADVERTS FOR DIRECTOR PEOPLE & PLACE
Eden District Council,http://opendatacommunities.org/id/district-council/eden,Legal Services Manager,Holding Accounts,Balance Sheet entry BS,PRINT IMAGE NETWORK LTD,PRI011,07/06/19,172598,5477.83,EU POLL CARDS
Eden District Council,http://opendatacommunities.org/id/district-council/eden,Corporate Services Manager,Central Expenses,Postages,NEOPOST LIMITED,NEO001,07/06/19,172639,2000,FRANKING REFILL
Eden District Council,http://opendatacommunities.org/id/district-council/eden,Dir of People & Place,Director of People & Place,Agency Staff,GATENBYSANDERSON LTD,GAT010,07/06/19,172654,800,REDACTED INFORMATION
Eden District Council,http://opendatacommunities.org/id/district-council/eden,Technical Services Manager,Administrative Buildings,Gas,CORONA ENERGY,COR003,07/06/19,172676,591.72,EDC TH
Eden District Council,http://opendatacommunities.org/id/district-council/eden,Technical Services Manager,Administrative Buildings,Gas,CORONA ENERGY,COR003,07/06/19,172677,518.74,EDC MH
Eden District Council,http://opendatacommunities.org/id/district-council/eden,Legal Services Manager,Holding Accounts,Balance Sheet entry BS,GREENWICH LEISURE LTD,NCL001,07/06/19,172686,3342.36,ROOM HIRE CATERING FOR ELECTIONS
Eden District Council,http://opendatacommunities.org/id/district-council/eden,Technical Services Manager,Administrative Buildings,Electricity,NPOWER LTD,NPO001,07/06/19,172692,750.99,MANSION HOUSE
Eden District Council,http://opendatacommunities.org/id/district-council/eden,Technical Services Manager,Administrative Buildings,Electricity,NPOWER LTD,NPO001,07/06/19,172693,1328.87,TOWN HALL
Eden District Council,http://opendatacommunities.org/id/district-council/eden,Technical Services Manager,Arts and Leisure,Grants and contributions,HUNSONBY SWIMMING POOL,HUN003,07/06/19,172703,500,RURAL POOL GRANT 1ST PAYMENT
Eden District Council,http://opendatacommunities.org/id/district-council/eden,Information Technology Manager,Information Technology,Software � maintenance,IDOX SOFTWARE LIMITED,IDO003,14/06/19,172904,2375,MIGRATION OF LALPAC SYSTEMS
Eden District Council,http://opendatacommunities.org/id/district-council/eden,Technical Services Manager,Community Development & Engagement,Professional fees,WICKSTEED LEISURE LTD,WIC001,14/06/19,172071,68808.26,BOLTON PLAY AREA
Eden District Council,http://opendatacommunities.org/id/district-council/eden,Technical Services Manager,Vehicle Parking Off Street,Winter Gritting,AMEY PLC,TFE001,14/06/19,172509,934.56,GRIT VARIOUS LOCATIONS
Eden District Council,http://opendatacommunities.org/id/district-council/eden,Commercial Services Manager,Economic Development and Promotion,Other charges for services,PEOPLE AND PLACES INSIGHT LIMITED,PEO001,14/06/19,172874,7000,BENCHMARKING
Eden District Council,http://opendatacommunities.org/id/district-council/eden,Technical Services Manager,Public Conveniences,Planned Maintenance,BELL GROUP LTD,BEL011,14/06/19,172922,4394,sandgate resource centre
Eden District Council,http://opendatacommunities.org/id/district-council/eden,Legal Services Manager,Legal Services,Professional fees,COSGROVE COSTING AGENCY,COS002,14/06/19,171908,1020,PROF CHARGES RALOS NEW ENERGY/EDC
Eden District Council,http://opendatacommunities.org/id/district-council/eden,Commercial Services Manager,Economic Development and Promotion,Professional fees,RESOURCE AND ENVIRONMENTAL CONSULTANTS LTD,RES006,14/06/19,172189,10125,PHASE 1&2 OLD LONDON GEO ENVIRON INVESTI
Eden District Council,http://opendatacommunities.org/id/district-council/eden,Technical Services Manager,Administrative Buildings,Planned Maintenance,RIBA ENTERPRISES LTD,RIB001,14/06/19,172245,1110,nbs building abdridged standalone
Eden District Council,http://opendatacommunities.org/id/district-council/eden,Financial Services Manager,Financial Services,Professional fees,CUMBRIA COUNTY COUNCIL,CCC002,14/06/19,172497,500,FRS102/IAS198 POST YE RUN31.03.19
Eden District Council,http://opendatacommunities.org/id/district-council/eden,Environmental Services,1996 Mandatory Renovation Grants,Capital grants,DOLPHIN MOBILITY YORKSHIRE & CUMBRIA LTD,DOL001,14/06/19,172498,3250,FIN PAYMENT GRANT
Eden District Council,http://opendatacommunities.org/id/district-council/eden,Revenue/Benefits Manager,Benefits,Software � maintenance,SOUTH LAKELAND DISTRICT COUNCIL,SOU006,14/06/19,172524,4557.5,RECHARGE QUOTE DEV FUND 2019-2020
Eden District Council,http://opendatacommunities.org/id/district-council/eden,Legal Services Manager,Committee and Member Costs,Conference,LOCAL GOVERNMENT ASSOCIATION,LOC005,14/06/19,172525,-545,CREDIT NOTE RE 1 ATTENDEE LGA CONFERENCE
Eden District Council,http://opendatacommunities.org/id/district-council/eden,Legal Services Manager,Committee and Member Costs,Conference,LOCAL GOVERNMENT ASSOCIATION,LOC005,14/06/19,172526,1090,2 ATTENDEES LGA CONFERENCE 02.07.19
Eden District Council,http://opendatacommunities.org/id/district-council/eden,Financial Services Manager,Corporate Costs,Professional fees,GRANT THORNTON UK LLP,THO026,14/06/19,172530,1966,2017-18 CERTIFICATION HOUSING BEN SUBSID
Eden District Council,http://opendatacommunities.org/id/district-council/eden,Environmental Services,Homelessness,Accommodation,MY SPACE HOUSING SOLUTIONS,MYS001,14/06/19,172593,4140.99,"PATEGILL RENT TO 31.03.19,01.04.19-06.19"
Eden District Council,http://opendatacommunities.org/id/district-council/eden,Legal Services Manager,Land Management,Professional fees,WALTON GOODLAND LTD,WAL008,14/06/19,172668,1200,FEASIBILITY STUDY WILLIAM ST CAR PARK
Eden District Council,http://opendatacommunities.org/id/district-council/eden,Legal Services Manager,Land Management,Land Management Contract,WALTON GOODLAND LTD,WAL008,14/06/19,172669,850,OLD LONDON RD -SCHEDULE OF CONDITION
Eden District Council,http://opendatacommunities.org/id/district-council/eden,Planning Policy Manager,Local Plans & Policy,Professional fees,Kaye BJ Management Ltd,KBJ001,14/06/19,172670,4500,TALK FOR ECDC 04.07.19
Eden District Council,http://opendatacommunities.org/id/district-council/eden,Legal Services Manager,Land Management,Professional fees,WALTON GOODLAND LTD,WAL008,14/06/19,172902,850,NEWTON HOUSENEGOTIATIONS
Eden District Council,http://opendatacommunities.org/id/district-council/eden,Corporate Services Manager,Corporate Services,Agency Staff,PAYSTREAM MY MAX LTD,PAY005,14/06/19,172906,1000,EDC 02.06.19
Eden District Council,http://opendatacommunities.org/id/district-council/eden,Planning Services,Development Control & Enforcement,Professional fees,LAMBERT SMITH HAMPTON,LAM009,14/06/19,172912,1840,PLANNING VISIBILITY REVIEW
Eden District Council,http://opendatacommunities.org/id/district-council/eden,Planning Services,Environmental Enhancement & Conservation,Professional fees,CAPITA PROPERTY & INFRASTRUCTURE LTD,CAP002,14/06/19,172914,2405,ARBORICULTURAL SERVICES MAY 19
Eden District Council,http://opendatacommunities.org/id/district-council/eden,Corporate Services Manager,Central Expenses,Postages,NEOPOST,NEO004,11/06/19,173097,995,Credifon Top Up
Eden District Council,http://opendatacommunities.org/id/district-council/eden,Information Technology Manager,Information Technology,Software � purchase,PHOENIX SOFTWARE LTD,PHO001,21/06/19,173163,57315.53,CORE AND VOLUME LICENCES
Eden District Council,http://opendatacommunities.org/id/district-council/eden,Environmental Services,Appleby Fair,Toilet Provision,BORDERLOOS,BOR003,21/06/19,173168,6060,1 EVENT TOTAL CHARGES APPLEBY
Eden District Council,http://opendatacommunities.org/id/district-council/eden,Human Resources Manager,Central Expenses,Advertising,SOLACE IN BUSINESS,SOL002,21/06/19,172913,5500,RECRUITMENT DIRECTOR P&P
Eden District Council,http://opendatacommunities.org/id/district-council/eden,Planning Policy Manager,Local Plans & Policy,Professional fees,DESIGNWORKS LTD,DES001,21/06/19,172951,1677,ARTWORK
Eden District Council,http://opendatacommunities.org/id/district-council/eden,Environmental Services,Pollution Control,Professional fees,BUREAU VERITAS HS&E LIMITED,BUR017,21/06/19,172493,1536,NO2 TUBES - 20 TUBES JAN19 -DEC19
Eden District Council,http://opendatacommunities.org/id/district-council/eden,Environmental Services,Homelessness,Accommodation,REDACTED INFORMATION,LEE016,21/06/19,172594,750,6 WEEKS RENT
Eden District Council,http://opendatacommunities.org/id/district-council/eden,Environmental Services,Housing Delivery,Professional fees,SOUTH LAKELAND DISTRICT COUNCIL,SOU006,21/06/19,172649,1031.03,EDC CBL CONT CUMBRIA CHOICE 19/20
Eden District Council,http://opendatacommunities.org/id/district-council/eden,Corporate Services Manager,Holding Accounts,Balance Sheet entry BS,ROYAL MAIL NW,ROY001,21/06/19,172882,2236.52,RESPONSE PLUS EUROPEAN
Eden District Council,http://opendatacommunities.org/id/district-council/eden,Financial Services Manager,VAT CONTROL ACCOUNT,Unique payments ****,PRINT IMAGE NETWORK LTD,PRI011,21/06/19,172883,2241.1,BALLOT BOOKS
Eden District Council,http://opendatacommunities.org/id/district-council/eden,Environmental Services,Homelessness,Grants and contributions,CARLISLE CITY COUNCIL,CAR015,21/06/19,172886,6000,ROUGH SLEEPERS INITIATIVE
Eden District Council,http://opendatacommunities.org/id/district-council/eden,Legal Services Manager,Holding Accounts,Balance Sheet entry BS,PRINT IMAGE NETWORK LTD,PRI011,21/06/19,172893,1476.54,EDEN EURO NCLS
Eden District Council,http://opendatacommunities.org/id/district-council/eden,Commercial Services Manager,Economic Development and Promotion,Professional fees,RESOURCE AND ENVIRONMENTAL CONSULTANTS LTD,RES006,21/06/19,172900,2250,GROUND GAS MONITORING
Eden District Council,http://opendatacommunities.org/id/district-council/eden,Legal Services Manager,Elections,Miscellaneous,PRINT IMAGE NETWORK LTD,PRI011,21/06/19,172905,5599.95,LOCAL BALLOT BOOKS
Eden District Council,http://opendatacommunities.org/id/district-council/eden,Planning Policy Manager,Local Plans & Policy,Professional fees,MR A D LLOYD CONSULTANCY,LLO011,21/06/19,172917,807.33,WORK PN PROGRAMME PLanning self build
Eden District Council,http://opendatacommunities.org/id/district-council/eden,Technical Services Manager,Arts and Leisure,Other charges for services,DUNCAN ROSS LAND DRAINAGE LTD,DUN008,21/06/19,172932,5247,WORKS AT PENRITH FOOTBALL CLUB
Eden District Council,http://opendatacommunities.org/id/district-council/eden,Environmental Services,1996 Mandatory Renovation Grants,At home in Eden,IMPACT HOUSING ASSOCIATION,IMP001,21/06/19,172933,825.75,AT HOME IN EDEN
Eden District Council,http://opendatacommunities.org/id/district-council/eden,Revenue/Benefits Manager,Revenue & Benefits,Postages,ROYAL MAIL NW,ROY001,21/06/19,172947,1539.1,1ST AND 2ND CLASS MAIL
Eden District Council,http://opendatacommunities.org/id/district-council/eden,Corporate Services Manager,Corporate Services,Agency Staff,PAYSTREAM MY MAX LTD,PAY005,21/06/19,172950,1500,SERVICES PROVIDED 21.05.19 TO 20.09.19
Eden District Council,http://opendatacommunities.org/id/district-council/eden,Legal Services Manager,Committee and Member Costs,Member expenses,GATESTRAVEL,GAT004,21/06/19,172952,678.19,RAIL AND HOTEL
Eden District Council,http://opendatacommunities.org/id/district-council/eden,Dir of People & Place,Director of People & Place,Agency Staff,GATENBYSANDERSON LTD,GAT010,21/06/19,173058,800,REDACTED INFORMATION
Eden District Council,http://opendatacommunities.org/id/district-council/eden,Human Resources Manager,Central Expenses,Welfare,CUMBRIA WASTE RECYCLING LTD,CUM022,21/06/19,173131,7612.72,BRING SITE CONTRACT
Eden District Council,http://opendatacommunities.org/id/district-council/eden,Commercial Services Manager,Community Development & Engagement,Community Fund,EDENHALL AND LANGWATHBY SPORTS AND RECREATION FIELD,EDE077,21/06/19,173137,875,25% REMAINING TOWARDS PROJECT
Eden District Council,http://opendatacommunities.org/id/district-council/eden,Technical Services Manager,Recycling,Garden Waste Skips,CUMBRIA WASTE RECYCLING LTD,CUM022,21/06/19,173140,3021,SKIP
Eden District Council,http://opendatacommunities.org/id/district-council/eden,Technical Services Manager,Recycling,Recycling - Bag & Box,CUMBRIA WASTE RECYCLING LTD,CUM022,21/06/19,173158,21759.98,GREEN BOX MAY 19
Eden District Council,http://opendatacommunities.org/id/district-council/eden,Technical Services Manager,Recycling,Recycling - Garden Waste,CUMBRIA WASTE RECYCLING LTD,CUM022,21/06/19,173159,24182.37,GARDEN WASTE MAY 19
Eden District Council,http://opendatacommunities.org/id/district-council/eden,Technical Services Manager,Arts and Leisure,Grants and contributions,HUNSONBY SWIMMING CLUB,HUN017,21/06/19,173167,500,ORIGINAL PAYMENT RETURNES 07.06.19
Eden District Council,http://opendatacommunities.org/id/district-council/eden,Planning Policy Manager,Local Plans & Policy,Child Care Voucher Scheme,BUSY BEES CHILDCARE VOUCHERS,BUS004,20/06/19,173331,1210,CHILDCARE VOUCHERS 20/06/19 DDR
Eden District Council,http://opendatacommunities.org/id/district-council/eden,None,Arts and Leisure,Balance brought forward BS,THE BRITISH MUSEUM GREAT COURT LTD,BRI029,28/06/19,173323,600,MEDIEVAL COIN HOARD FROM WHARTON
Eden District Council,http://opendatacommunities.org/id/district-council/eden,Commercial Services Manager,Tourism Promotion,Marketing,YORKSHIRE DALES NATIONAL PARK AUTHORITY,YOR003,28/06/19,173329,2000,WESTMORLAND DALES PARTNER PAYMENT
Eden District Council,http://opendatacommunities.org/id/district-council/eden,Revenue/Benefits Manager,Revenue & Benefits,Printing and stationary,CFH DOCMAIL LTD,CFH001,28/06/19,171401,3574.8,PRINT REQUIREMENTS
Eden District Council,http://opendatacommunities.org/id/district-council/eden,Technical Services Manager,Land Management,Building works,DINSDALE CONTRACTS LTD,DIN005,28/06/19,172075,26210.53,SLAB REMEDIAL/BARRIER INSTALLATION
Eden District Council,http://opendatacommunities.org/id/district-council/eden,Technical Services Manager,Vehicle Parking Off Street,Maintenance of parking meters,CALE ACCESS UK LTD,CAL008,28/06/19,172641,5614,UPGRADE MACHINES
Eden District Council,http://opendatacommunities.org/id/district-council/eden,Technical Services Manager,Land Management,Gas equipment maintenance,GREENFIELDS HEAT & POWER LTD,GRE035,28/06/19,172896,2459.42,SERVICING & CP12'S VARIOUS SITES
Eden District Council,http://opendatacommunities.org/id/district-council/eden,Technical Services Manager,Central Expenses,Ergonomic Assessments,HEATONS OFFICE SOLUTIONS LTD,LAK004,28/06/19,172911,1279.07,STATIONERY/FURNITURE/PAPER
Eden District Council,http://opendatacommunities.org/id/district-council/eden,Human Resources Manager,Staff Development,Training Expenses,JULIE BELL CONSULTING LTD,JUL001,28/06/19,172943,850,ASSERTIVENESS TRAINING 07.06.19
Eden District Council,http://opendatacommunities.org/id/district-council/eden,Planning Policy Manager,Local Plans & Policy,Professional fees,MR A D LLOYD CONSULTANCY,LLO011,28/06/19,173129,1197,JULY CUSTOM / SERLF BUILD EVENT RHEGED
Eden District Council,http://opendatacommunities.org/id/district-council/eden,Human Resources Manager,Staff Development,Training Expenses,COPELAND BOROUGH COUNCIL,COP001,28/06/19,173266,840,JULIE BARRATT TRAINING
Eden District Council,http://opendatacommunities.org/id/district-council/eden,Human Resources Manager,Central Expenses,Advertising,REDACTIVE PUBLISHING LIMITED,RED006,28/06/19,173320,1250,JOB LISTING AND LOGO
Eden District Council,http://opendatacommunities.org/id/district-council/eden,Environmental Services,Housing Delivery,Professional fees,NORTHERN  HOUSING CONSORTIUM,NOR003,28/06/19,171693,910,MEMBERSHIP NORTHERN HOUSING 19/20
Eden District Council,http://opendatacommunities.org/id/district-council/eden,Environmental Services,Other Environmental Health,Professional fees,UNITED UTILITIES WATER PLC,UNI024,28/06/19,171855,2868.66,PWA/FS ANALYSIS MARCH 19
Eden District Council,http://opendatacommunities.org/id/district-council/eden,Transformation & Customers Head of,Communications Services,Social Media,UPBEAT NORTH LTD,HYD002,28/06/19,171878,744,HOSTING/SUPPORYT/MAINT APPLEBY FAIR 2019
Eden District Council,http://opendatacommunities.org/id/district-council/eden,Environmental Services,Other Environmental Health,Professional fees,UNITED UTILITIES WATER PLC,UNI024,28/06/19,172648,1899.1,WT/FS ANALYSIS APRIL 19
Eden District Council,http://opendatacommunities.org/id/district-council/eden,Technical Services Manager,Arts and Leisure,Other charges for services,GREENWICH LEISURE LTD,NCL001,28/06/19,172650,1820.84,20001 REPAIR/MAINT CLIMBING WALL
Eden District Council,http://opendatacommunities.org/id/district-council/eden,Legal Services Manager,Land Management,Land Management Contract,WALTON GOODLAND LTD,WAL008,28/06/19,172895,2247,SURVEYOR MAY 19
Eden District Council,http://opendatacommunities.org/id/district-council/eden,Commercial Services Manager,Crime & Disorder Reduction Partnership,Grants and contributions,CARLISLE RETAILERS AGAINST CRIME,CAR039,28/06/19,172954,612,shared licence disc crime management
Eden District Council,http://opendatacommunities.org/id/district-council/eden,Information Technology Manager,Information Technology,GIS Platform,ASTUN TECHNOLOGY LIMITED,AST004,28/06/19,173059,2550,CONSULTANCY GIS PHASE 2
Eden District Council,http://opendatacommunities.org/id/district-council/eden,Environmental Services,1996 Mandatory Renovation Grants,Capital grants,HANDICARE ACCESSIBILITY LTD,FRE002,28/06/19,173071,4565,FINAL PAYMENT GRANT
Eden District Council,http://opendatacommunities.org/id/district-council/eden,Environmental Services,1996 Mandatory Renovation Grants,Capital grants,KJS ACCESS SOLUTIONS,KJS001,28/06/19,173072,1085.9,FINAL PAYMENT GRANT
Eden District Council,http://opendatacommunities.org/id/district-council/eden,Environmental Services,1996 Mandatory Renovation Grants,Capital grants,PPM LTD,PPM001,28/06/19,173073,3788.27,FINAL PAYMENT GRANT
Eden District Council,http://opendatacommunities.org/id/district-council/eden,Environmental Services,1996 Mandatory Renovation Grants,Capital grants,TOP NOTCH CONTRACTORS LTD,TOP003,28/06/19,173074,5864.5,INTERIM PAYMENT GRANT
Eden District Council,http://opendatacommunities.org/id/district-council/eden,Environmental Services,1996 Mandatory Renovation Grants,Capital grants,PPM LTD,PPM001,28/06/19,173076,3957.7,FINAL PAYMENT GRANT
Eden District Council,http://opendatacommunities.org/id/district-council/eden,Environmental Services,1996 Mandatory Renovation Grants,Capital grants,PPM LTD,PPM001,28/06/19,173077,4582.13,FINAL PAYMENT GRANT
Eden District Council,http://opendatacommunities.org/id/district-council/eden,Environmental Services,1996 Mandatory Renovation Grants,Capital grants,PPM LTD,PPM001,28/06/19,173078,4280.77,FINAL PAYMENT FLAT GRANT
Eden District Council,http://opendatacommunities.org/id/district-council/eden,Legal Services Manager,Holding Accounts,Balance Sheet entry BS,PRINT IMAGE NETWORK LTD,PRI011,28/06/19,173138,9800.04,POSTAL VOTES
Eden District Council,http://opendatacommunities.org/id/district-council/eden,Legal Services Manager,Holding Accounts,Balance Sheet entry BS,PRINT IMAGE NETWORK LTD,PRI011,28/06/19,173139,9088.8,BALLOT BOXES
Eden District Council,http://opendatacommunities.org/id/district-council/eden,Financial Services Manager,Corporate Costs,Audit fee,GRANT THORNTON UK LLP,THO026,28/06/19,173142,8074,EXTERNA; AUDOT 18/19 INSTALLMENT 4 OF 4
Eden District Council,http://opendatacommunities.org/id/district-council/eden,Legal Services Manager,Legal Services,Agency Staff,VENN GROUP LIMITED,VEN003,28/06/19,173147,2096.15,TIME SHEET 26.05.19 LOCUM SOLICITOR
Eden District Council,http://opendatacommunities.org/id/district-council/eden,Legal Services Manager,Legal Services,Agency Staff,VENN GROUP LIMITED,VEN003,28/06/19,173148,1676.92,TIME SHEET 02.06.19 LOCUM SOLICITOR
Eden District Council,http://opendatacommunities.org/id/district-council/eden,Legal Services Manager,Legal Services,Agency Staff,VENN GROUP LIMITED,VEN003,28/06/19,173149,2096.15,TIME SHEET 09.06.19 LOCUM SOLICITOR
Eden District Council,http://opendatacommunities.org/id/district-council/eden,Legal Services Manager,Legal Services,Agency Staff,VENN GROUP LIMITED,VEN003,28/06/19,173150,838.46,TIME SHEET 05.05.19 LOCUM SOLICITOR
Eden District Council,http://opendatacommunities.org/id/district-council/eden,Legal Services Manager,Legal Services,Agency Staff,VENN GROUP LIMITED,VEN003,28/06/19,173151,838.46,TIME SHEET 28.04.19 LOCUM SOLICITOR
Eden District Council,http://opendatacommunities.org/id/district-council/eden,Legal Services Manager,Legal Services,Agency Staff,VENN GROUP LIMITED,VEN003,28/06/19,173152,838.46,TIME SHEET 12.05.19 LOCUM SOLICITOR
Eden District Council,http://opendatacommunities.org/id/district-council/eden,Legal Services Manager,Legal Services,Agency Staff,VENN GROUP LIMITED,VEN003,28/06/19,173153,2096.15,TIME SHEET 19.05.19 LOCUM SOLICITOR
Eden District Council,http://opendatacommunities.org/id/district-council/eden,Environmental Services,1996 Mandatory Renovation Grants,Capital grants,NORTH LAKES GLASS GLAZING LTD,NOR036,28/06/19,173156,1711,FIN PAYMET GRANT
Eden District Council,http://opendatacommunities.org/id/district-council/eden,Corporate Services Manager,Corporate Services,Agency Staff,PAYSTREAM MY MAX LTD,PAY005,28/06/19,173164,1500,SERVICES PROVIDED P/E 16.06.19
Eden District Council,http://opendatacommunities.org/id/district-council/eden,Technical Services Manager,Closed Church Yards,GM INSPECTIONS & MAINTENANCE,AMEY PLC,TFE001,28/06/19,173165,34280.16,GROUNDS MAIN MAY 2019
Eden District Council,http://opendatacommunities.org/id/district-council/eden,Technical Services Manager,Closed Church Yards,GM INSPECTIONS & MAINTENANCE,AMEY PLC,TFE001,28/06/19,173166,34280.16,GROUNDS MAINTENANCE APR19
Eden District Council,http://opendatacommunities.org/id/district-council/eden,Technical Services Manager,Refuse Collection,Contract refuse collection,AMEY PLC,TFE001,28/06/19,173172,72605.89,REFUSE APRIL
Eden District Council,http://opendatacommunities.org/id/district-council/eden,Technical Services Manager,Administrative Buildings,Water charges � metered,WATER PLUS,UNI008,28/06/19,173174,534.45,MANSION HOUSE
Eden District Council,http://opendatacommunities.org/id/district-council/eden,Technical Services Manager,Public Conveniences,Water charges � metered,WATER PLUS,UNI008,28/06/19,173175,870.73,BLUE BELL LANE PCS
Eden District Council,http://opendatacommunities.org/id/district-council/eden,Environmental Services,Appleby Fair,Street Cleaning Contract,AMEY PLC,TFE001,28/06/19,173176,18472.7,STREET CLEANSING
Eden District Council,http://opendatacommunities.org/id/district-council/eden,Technical Services Manager,Recycling,Em Wks Storage,AMEY PLC,TFE001,28/06/19,173177,532.55,SEE ATTATCHED CERT
Eden District Council,http://opendatacommunities.org/id/district-council/eden,Technical Services Manager,Recycling,Em Wks Storage,AMEY PLC,TFE001,28/06/19,173178,532.55,SEE ATTACHED CERT
Eden District Council,http://opendatacommunities.org/id/district-council/eden,Technical Services Manager,Recycling,material price fluctuations,CUMBRIA WASTE RECYCLING LTD,CUM022,28/06/19,173179,4415.66,KERBSIDE BAG & BOX
Eden District Council,http://opendatacommunities.org/id/district-council/eden,Technical Services Manager,Recycling,Em Wks Storage,AMEY PLC,TFE001,28/06/19,173182,532.55,SEE ATTACHED CERT
Eden District Council,http://opendatacommunities.org/id/district-council/eden,Technical Services Manager,Refuse Collection,Contract refuse collection,AMEY PLC,TFE001,28/06/19,173183,72605.89,REFUSE MAY 19
Eden District Council,http://opendatacommunities.org/id/district-council/eden,Technical Services Manager,Administrative Buildings,Gas,CORONA ENERGY,COR003,28/06/19,173277,514.13,TOWN HALL MAY-JUNE 19
Eden District Council,http://opendatacommunities.org/id/district-council/eden,Commercial Services Manager,Museum,Electricity,NPOWER LTD,NPO001,28/06/19,173287,585,TIC PENRITH APRIL-MAY 19
Eden District Council,http://opendatacommunities.org/id/district-council/eden,Technical Services Manager,Holding Accounts,Balance Sheet entry BS,PAKFLATT UK LTD,PAK001,28/06/19,173293,846,EU TVD'S + CARRIAGE
Eden District Council,http://opendatacommunities.org/id/district-council/eden,Technical Services Manager,Holding Accounts,Balance Sheet entry BS,DYNAMIC JOINERY LTD,DYN004,28/06/19,173294,4600,DELIVERY BALLOT BOXES
Eden District Council,http://opendatacommunities.org/id/district-council/eden,Technical Services Manager,Refuse Collection,Contract refuse collection,AMEY PLC,TFE001,28/06/19,173296,72605.89,M-RC87
Eden District Council,http://opendatacommunities.org/id/district-council/eden,Commercial Services Manager,Crime & Disorder Reduction Partnership,Grants and contributions,PRO-TECT UK SECURITY & TRAINING LTD,PRO005,28/06/19,173303,1035,DOOR SUPERVISORS CHINA MOON
Eden District Council,http://opendatacommunities.org/id/district-council/eden,Commercial Services Manager,Crime & Disorder Reduction Partnership,Grants and contributions,PRO-TECT UK SECURITY & TRAINING LTD,PRO005,28/06/19,173304,1962,DOOR SUPERVISORS CROWN & CUSHION
Eden District Council,http://opendatacommunities.org/id/district-council/eden,Commercial Services Manager,Crime & Disorder Reduction Partnership,Grants and contributions,PRO-TECT UK SECURITY & TRAINING LTD,PRO005,28/06/19,173305,2149.5,DOOR SUPERVISORS THE GRAPES
Eden District Council,http://opendatacommunities.org/id/district-council/eden,Commercial Services Manager,Crime & Disorder Reduction Partnership,Grants and contributions,PRO-TECT UK SECURITY & TRAINING LTD,PRO005,28/06/19,173306,2133.51,DOOR SUPERVISORS KINGS HEAD
Eden District Council,http://opendatacommunities.org/id/district-council/eden,Commercial Services Manager,Crime & Disorder Reduction Partnership,Grants and contributions,PRO-TECT UK SECURITY & TRAINING LTD,PRO005,28/06/19,173307,1104,DOOR SUPERVISORS MASONS ARMS
Eden District Council,http://opendatacommunities.org/id/district-council/eden,Commercial Services Manager,Crime & Disorder Reduction Partnership,Grants and contributions,PRO-TECT UK SECURITY & TRAINING LTD,PRO005,28/06/19,173308,1285.38,DOOR SUPERVISORS ROYAL OAK
Eden District Council,http://opendatacommunities.org/id/district-council/eden,Commercial Services Manager,Crime & Disorder Reduction Partnership,Grants and contributions,PRO-TECT UK SECURITY & TRAINING LTD,PRO005,28/06/19,173309,1184,DOOR SUPERVISORS RESPONSE TEAM
Eden District Council,http://opendatacommunities.org/id/district-council/eden,Commercial Services Manager,Crime & Disorder Reduction Partnership,Grants and contributions,PRO-TECT UK SECURITY & TRAINING LTD,PRO005,28/06/19,173310,671,DOOR SUPERVISORS BRIDGE END NEWS
Eden District Council,http://opendatacommunities.org/id/district-council/eden,Technical Services Manager,Administrative Buildings,Electricity,NPOWER LTD,NPO001,28/06/19,173315,810.11,MANSION HOUSE MAY 19
Eden District Council,http://opendatacommunities.org/id/district-council/eden,Technical Services Manager,Administrative Buildings,Electricity,NPOWER LTD,NPO001,28/06/19,173316,1360.88,TOWN HALL MAY 19
Eden District Council,http://opendatacommunities.org/id/district-council/eden,Corporate Services Manager,Corporate Services,Agency Staff,PAYSTREAM MY MAX LTD,PAY005,28/06/19,173318,1500,SERVICES PROVIDED P/E 23.06.19
Eden District Council,http://opendatacommunities.org/id/district-council/eden,Environmental Services,1996 Mandatory Renovation Grants,Capital grants,C W COX & SONS (KENDAL)  LTD,COX001,28/06/19,173324,8470,FIN PAYMENT
Eden District Council,http://opendatacommunities.org/id/district-council/eden,Technical Services Manager,Administrative Buildings,Building works,AMEY PLC,TFE001,21/06/19,173406,2897.12,FILING ROOM ALTERATIONS
Eden District Council,http://opendatacommunities.org/id/district-council/eden,Financial Services Manager,Tourism Promotion,Loan Provision,HEART OF CUMBRIA LTD,HEA029,27/06/19,173446,240000,LOAN TO HOC
Eden District Council,http://opendatacommunities.org/id/district-council/eden,Financial Services Manager,Corporate Costs,Bank charges,BARCLAYS MERCHANT SERVICES,BMS001,10/06/19,194118,913.85,Merchant Services Charges
Eden District Council,http://opendatacommunities.org/id/district-council/eden,Financial Services Manager,Corporate Costs,Bank charges,BARCLAYS MERCHANT SERVICES,BMS001,10/06/19,194119,546.16,Merchant Services Charges
Eden District Council,http://opendatacommunities.org/id/district-council/eden,Financial Services Manager,Corporate Costs,Bank charges,BARCLAYS COMMISION SERVICES,BCS001,25/06/19,194668,1902.83,Merchant Services Charges
